[Event "GrandPrix_29.05"]
[Site "Chess.com"]
[Date "2020.05.29"]
[Round "4"]
[White "IriBu"]
[Black "Paulz64"]
[Result "1-0"]
[WhiteElo "2113"]
[BlackElo "2003"]
[TimeControl "600+2"]
[EndTime "10:56:42 PDT"]
[Termination "IriBu won by resignation"]

1. e4 {[%clk 0:10:01.9]} 1... c5 {[%clk 0:10:00.4]} 2. Nf3 {[%clk 0:10:02.3]}
2... e6 {[%clk 0:10:00.3]} 3. d4 {[%clk 0:10:03.3]} 3... cxd4 {[%clk 0:10:01.3]}
4. Nxd4 {[%clk 0:10:05.2]} 4... a6 {[%clk 0:10:02.2]} 5. Nc3 {[%clk 0:10:05.9]}
5... Qc7 {[%clk 0:10:02.9]} 6. Bd3 {[%clk 0:10:06.9]} 6... g6 {[%clk 0:10:04.1]}
7. Be3 {[%clk 0:10:03]} 7... Bg7 {[%clk 0:10:04]} 8. a4 {[%clk 0:10:00.6]} 8...
Nf6 {[%clk 0:10:02.9]} 9. O-O {[%clk 0:09:59]} 9... O-O {[%clk 0:10:02]} 10. h3
{[%clk 0:09:48]} 10... d6 {[%clk 0:10:01]} 11. Qd2 {[%clk 0:09:44.3]} 11... b6
{[%clk 0:09:56.9]} 12. Bh6 {[%clk 0:09:40.7]} 12... Bb7 {[%clk 0:09:58]} 13.
Bxg7 {[%clk 0:09:40]} 13... Kxg7 {[%clk 0:09:59.4]} 14. Rae1 {[%clk 0:09:37.9]}
14... Nbd7 {[%clk 0:10:00.1]} 15. Kh1 {[%clk 0:09:35.6]} 15... Nc5 {[%clk
0:09:27.1]} 16. f4 {[%clk 0:09:36.5]} 16... Rad8 {[%clk 0:09:16]} 17. b4 {[%clk
0:09:01.5]} 17... Ncd7 {[%clk 0:08:12.7]} 18. Nd1 {[%clk 0:09:01.1]} 18... e5
{[%clk 0:07:55.4]} 19. fxe5 {[%clk 0:07:49.2]} 19... dxe5 {[%clk 0:07:52.8]} 20.
Nb3 {[%clk 0:07:03.4]} 20... Nh5 {[%clk 0:07:33.7]} 21. Qe3 {[%clk 0:05:53.7]}
21... Qd6 {[%clk 0:07:07.4]} 22. c3 {[%clk 0:05:21.1]} 22... Nf4 {[%clk
0:06:49.4]} 23. Bc2 {[%clk 0:05:14.2]} 23... Rc8 {[%clk 0:06:36.4]} 24. g3
{[%clk 0:04:57.7]} 24... Nh5 {[%clk 0:06:14.9]} 25. Kh2 {[%clk 0:04:58.7]} 25...
Bc6 {[%clk 0:04:51.9]} 26. Nc1 {[%clk 0:04:27.6]} 26... b5 {[%clk 0:04:42.9]}
27. a5 {[%clk 0:04:27.8]} 27... Ndf6 {[%clk 0:04:34]} 28. Nf2 {[%clk 0:04:24.3]}
28... Bd7 {[%clk 0:04:27.3]} 29. Bb3 {[%clk 0:04:12.1]} 29... Be6 {[%clk
0:04:15]} 30. Rd1 {[%clk 0:04:10.3]} 30... Qc6 {[%clk 0:04:12.5]} 31. Bxe6
{[%clk 0:03:59.5]} 31... Qxe6 {[%clk 0:04:10.9]} 32. Rd2 {[%clk 0:03:44.3]}
32... Qc4 {[%clk 0:04:02.6]} 33. Ne2 {[%clk 0:03:37.7]} 33... Rfd8 {[%clk
0:03:55.3]} 34. Rfd1 {[%clk 0:03:35]} 34... Rxd2 {[%clk 0:03:55.4]} 35. Rxd2
{[%clk 0:03:36.4]} 35... Qc6 {[%clk 0:03:47.3]} 36. Rd3 {[%clk 0:03:27.1]} 36...
Rc7 {[%clk 0:03:25.3]} 37. g4 {[%clk 0:03:21.8]} 37... Nf4 {[%clk 0:03:21.6]}
38. Nxf4 {[%clk 0:03:22.4]} 38... exf4 {[%clk 0:03:23]} 39. Qxf4 {[%clk
0:03:23.8]} 39... Nd7 {[%clk 0:02:48.3]} 40. Rf3 {[%clk 0:03:04.6]} 40... Nf6
{[%clk 0:02:27.7]} 41. g5 {[%clk 0:02:54.3]} 41... Nh5 {[%clk 0:02:26.8]} 42.
Qe5+ {[%clk 0:02:54.9]} 42... Kg8 {[%clk 0:02:27.7]} 43. Ng4 {[%clk 0:02:50.7]}
43... Qc4 {[%clk 0:01:47.9]} 44. Nh6+ {[%clk 0:02:26.1]} 44... Kf8 {[%clk
0:01:48]} 45. Qh8+ {[%clk 0:02:21.6]} 45... Ke7 {[%clk 0:01:48.7]} 46. Rxf7+
{[%clk 0:02:18.9]} 1-0

[Event "GrandPrix_29.05"]
[Site "Chess.com"]
[Date "2020.05.29"]
[Round "4"]
[White "ly4o"]
[Black "SmirnovTimofey2000"]
[Result "0-1"]
[WhiteElo "2018"]
[BlackElo "2189"]
[TimeControl "600+2"]
[EndTime "10:56:43 PDT"]
[Termination "SmirnovTimofey2000 won by resignation"]

1. d4 {[%clk 0:10:01.9]} 1... d5 {[%clk 0:10:00.3]} 2. c4 {[%clk 0:10:03.1]}
2... c6 {[%clk 0:10:00.8]} 3. cxd5 {[%clk 0:10:03.3]} 3... cxd5 {[%clk
0:10:01.6]} 4. Bf4 {[%clk 0:10:05]} 4... Nc6 {[%clk 0:09:59.4]} 5. e3 {[%clk
0:10:05.8]} 5... Nf6 {[%clk 0:09:59.9]} 6. Nc3 {[%clk 0:10:07]} 6... Bg4 {[%clk
0:09:59.6]} 7. Qb3 {[%clk 0:10:07.1]} 7... Na5 {[%clk 0:09:59.8]} 8. Bb5+ {[%clk
0:10:07]} 8... Bd7 {[%clk 0:09:59.9]} 9. Qa4 {[%clk 0:10:08.1]} 9... e6 {[%clk
0:09:59.4]} 10. Nf3 {[%clk 0:10:07.6]} 10... a6 {[%clk 0:09:59]} 11. Bxd7+
{[%clk 0:10:07.9]} 11... Nxd7 {[%clk 0:10:00.9]} 12. O-O {[%clk 0:10:05.7]}
12... b5 {[%clk 0:10:00.9]} 13. Qd1 {[%clk 0:10:06.2]} 13... Be7 {[%clk
0:10:00.5]} 14. Ne5 {[%clk 0:10:04.9]} 14... O-O {[%clk 0:09:55.6]} 15. b3
{[%clk 0:09:50.1]} 15... Rc8 {[%clk 0:09:52.5]} 16. Qd3 {[%clk 0:09:48.4]} 16...
Nxe5 {[%clk 0:09:38.9]} 17. Bxe5 {[%clk 0:09:49]} 17... Ba3 {[%clk 0:09:37.2]}
18. Rad1 {[%clk 0:09:38.6]} 18... Nc6 {[%clk 0:09:29]} 19. Bg3 {[%clk
0:09:39.6]} 19... Qa5 {[%clk 0:09:18.5]} 20. Ne2 {[%clk 0:09:37.3]} 20... Be7
{[%clk 0:09:06.4]} 21. Qb1 {[%clk 0:09:32.5]} 21... Nb4 {[%clk 0:08:59.9]} 22.
Nf4 {[%clk 0:09:21.8]} 22... Qxa2 {[%clk 0:08:54.3]} 23. Qxa2 {[%clk 0:09:22.1]}
23... Nxa2 {[%clk 0:08:53.6]} 24. Nd3 {[%clk 0:09:23.4]} 24... Nb4 {[%clk
0:08:44.8]} 25. Nc5 {[%clk 0:09:18]} 25... Rfd8 {[%clk 0:08:33.7]} 26. Rc1
{[%clk 0:09:05.6]} 26... Rc6 {[%clk 0:08:28.4]} 27. Nb7 {[%clk 0:08:42]} 27...
Rdc8 {[%clk 0:08:25]} 28. Ra1 {[%clk 0:08:43.1]} 28... Rb6 {[%clk 0:08:11.1]}
29. Rfc1 {[%clk 0:08:25.1]} 29... Rxc1+ {[%clk 0:07:13]} 30. Rxc1 {[%clk
0:08:27]} 30... Rc6 {[%clk 0:07:14.4]} 31. Ra1 {[%clk 0:08:21.3]} 31... Nc2
{[%clk 0:06:42.1]} 32. Rb1 {[%clk 0:08:06.6]} 32... Bb4 {[%clk 0:06:34.2]} 33.
h3 {[%clk 0:08:04.8]} 33... f6 {[%clk 0:05:58.5]} 34. Kf1 {[%clk 0:08:05.4]}
34... Be7 {[%clk 0:05:19.5]} 35. Ke2 {[%clk 0:07:55.2]} 35... Kf7 {[%clk
0:05:11.8]} 36. Kd2 {[%clk 0:07:42.2]} 36... Nb4 {[%clk 0:05:07.9]} 37. Kd1
{[%clk 0:07:19.5]} 37... Ke8 {[%clk 0:05:03.6]} 38. Nc5 {[%clk 0:07:17]} 38...
Bxc5 {[%clk 0:05:00.9]} 39. dxc5 {[%clk 0:07:18.9]} 39... e5 {[%clk 0:04:57]}
40. f4 {[%clk 0:07:14.6]} 40... Re6 {[%clk 0:03:52.2]} 41. Kd2 {[%clk
0:07:09.5]} 41... exf4 {[%clk 0:03:42.2]} 42. Bxf4 {[%clk 0:07:08.3]} 42... Kd7
{[%clk 0:03:38]} 43. Kc3 {[%clk 0:06:59.4]} 43... a5 {[%clk 0:03:28.6]} 44. Ra1
{[%clk 0:06:54.8]} 44... Nc6 {[%clk 0:03:28.4]} 45. Rd1 {[%clk 0:06:54.9]} 45...
Ne7 {[%clk 0:03:15.5]} 46. Ra1 {[%clk 0:06:53]} 46... Ra6 {[%clk 0:03:13.7]} 47.
Kd4 {[%clk 0:06:51.9]} 47... Kc6 {[%clk 0:02:21.9]} 48. g4 {[%clk 0:06:51.8]}
48... Ng6 {[%clk 0:01:59.1]} 49. Bd6 {[%clk 0:06:51.3]} 49... Nh4 {[%clk
0:01:49.8]} 50. Bf8 {[%clk 0:06:48.9]} 50... Ra7 {[%clk 0:01:46.4]} 51. Bd6
{[%clk 0:06:45.1]} 51... Nf3+ {[%clk 0:01:44.1]} 52. Kc3 {[%clk 0:06:45.3]}
52... Ng5 {[%clk 0:01:42.4]} 53. Kd4 {[%clk 0:05:49.5]} 53... Ne6+ {[%clk
0:01:29.4]} 54. Kc3 {[%clk 0:05:40.9]} 54... Nxc5 {[%clk 0:01:30]} 55. Bh2
{[%clk 0:05:41.6]} 55... b4+ {[%clk 0:01:28.8]} 56. Kc2 {[%clk 0:05:40.2]} 56...
Kb5 {[%clk 0:01:28.1]} 57. Rd1 {[%clk 0:05:41.2]} 57... Rd7 {[%clk 0:01:28]} 58.
h4 {[%clk 0:05:40.3]} 58... h6 {[%clk 0:01:27.6]} 59. g5 {[%clk 0:05:37.6]}
59... hxg5 {[%clk 0:01:27.3]} 60. hxg5 {[%clk 0:05:39.5]} 60... fxg5 {[%clk
0:01:28.5]} 61. Be5 {[%clk 0:05:37.5]} 61... Ne4 {[%clk 0:01:23.6]} 62. Rg1
{[%clk 0:05:37.2]} 62... Re7 {[%clk 0:01:22.3]} 63. Bd4 {[%clk 0:05:36.6]} 63...
Rc7+ {[%clk 0:01:22.2]} 64. Kd3 {[%clk 0:05:37.7]} 64... Rf7 {[%clk 0:01:19.5]}
65. Rg2 {[%clk 0:05:33.7]} 65... g4 {[%clk 0:01:14.1]} 66. Be5 {[%clk
0:05:31.4]} 66... Rf2 {[%clk 0:00:58.2]} 67. Rxf2 {[%clk 0:05:30.8]} 67... Nxf2+
{[%clk 0:01:00.1]} 68. Kd4 {[%clk 0:05:31.8]} 68... Kc6 {[%clk 0:00:57.8]} 69.
Bf4 {[%clk 0:05:24.8]} 69... Ne4 {[%clk 0:00:57]} 70. Kd3 {[%clk 0:05:26.1]}
70... g3 {[%clk 0:00:55.5]} 71. Ke2 {[%clk 0:05:27.5]} 71... g2 {[%clk
0:00:53.1]} 72. Bh2 {[%clk 0:05:28.6]} 72... a4 {[%clk 0:00:54.2]} 73. bxa4
{[%clk 0:05:29.4]} 73... b3 {[%clk 0:00:56.1]} 0-1

[Event "GrandPrix_29.05"]
[Site "Chess.com"]
[Date "2020.05.29"]
[Round "4"]
[White "Gabrielian_Artur"]
[Black "Sanan_Sjugirov"]
[Result "1-0"]
[WhiteElo "2844"]
[BlackElo "2823"]
[TimeControl "600+2"]
[EndTime "10:56:46 PDT"]
[Termination "Gabrielian_Artur won by resignation"]

1. e4 {[%clk 0:10:01.9]} 1... c6 {[%clk 0:09:49.5]} 2. d4 {[%clk 0:10:00.8]}
2... d5 {[%clk 0:09:49.7]} 3. exd5 {[%clk 0:10:01.4]} 3... cxd5 {[%clk
0:09:50.1]} 4. Bd3 {[%clk 0:10:02.3]} 4... Nc6 {[%clk 0:09:48.8]} 5. c3 {[%clk
0:10:03.3]} 5... Nf6 {[%clk 0:09:45.1]} 6. h3 {[%clk 0:10:03.8]} 6... e5 {[%clk
0:09:31.2]} 7. dxe5 {[%clk 0:10:00.4]} 7... Nxe5 {[%clk 0:09:33.1]} 8. Nf3
{[%clk 0:09:47.6]} 8... Nxd3+ {[%clk 0:09:31.7]} 9. Qxd3 {[%clk 0:09:48.4]} 9...
Bd6 {[%clk 0:09:30.6]} 10. O-O {[%clk 0:09:44]} 10... O-O {[%clk 0:09:31.3]} 11.
Bg5 {[%clk 0:09:38.1]} 11... h6 {[%clk 0:09:31.7]} 12. Bh4 {[%clk 0:09:38.6]}
12... g5 {[%clk 0:09:29.2]} 13. Bg3 {[%clk 0:09:14.6]} 13... Bxg3 {[%clk
0:09:26.8]} 14. fxg3 {[%clk 0:09:16.5]} 14... Ne4 {[%clk 0:09:18.5]} 15. Nd4
{[%clk 0:09:16.9]} 15... f5 {[%clk 0:08:20.7]} 16. Nd2 {[%clk 0:09:05.4]} 16...
Qd6 {[%clk 0:08:09.9]} 17. g4 {[%clk 0:07:08.2]} 17... Nxd2 {[%clk 0:07:55.4]}
18. Qxd2 {[%clk 0:07:08.5]} 18... fxg4 {[%clk 0:07:55.3]} 19. Rxf8+ {[%clk
0:07:08.6]} 19... Kxf8 {[%clk 0:05:56]} 20. Rf1+ {[%clk 0:06:46.8]} 20... Kg7
{[%clk 0:05:54.2]} 21. Qf2 {[%clk 0:06:30.9]} 21... Qe7 {[%clk 0:05:31.3]} 22.
Re1 {[%clk 0:03:01]} 22... Qf7 {[%clk 0:02:58.4]} 23. Qg3 {[%clk 0:02:42.2]}
23... Bd7 {[%clk 0:02:42.9]} 24. Qe5+ {[%clk 0:02:29.2]} 24... Qf6 {[%clk
0:00:30.2]} 25. Qc7 {[%clk 0:02:28.2]} 25... Qf7 {[%clk 0:00:08.5]} 26. Re7
{[%clk 0:02:26.6]} 1-0

[Event "GrandPrix_29.05"]
[Site "Chess.com"]
[Date "2020.05.29"]
[Round "4"]
[White "kirillshevchenko"]
[Black "DenisQ"]
[Result "1-0"]
[WhiteElo "2751"]
[BlackElo "2196"]
[TimeControl "600+2"]
[EndTime "10:56:46 PDT"]
[Termination "kirillshevchenko won by resignation"]

1. e4 {[%clk 0:10:01.9]} 1... c6 {[%clk 0:09:56.6]} 2. d4 {[%clk 0:10:02.4]}
2... d5 {[%clk 0:09:56.9]} 3. e5 {[%clk 0:10:04.1]} 3... c5 {[%clk 0:09:33.3]}
4. dxc5 {[%clk 0:10:04.2]} 4... Nc6 {[%clk 0:09:33.5]} 5. f4 {[%clk 0:09:39.1]}
5... e6 {[%clk 0:09:31]} 6. Be3 {[%clk 0:09:39.4]} 6... d4 {[%clk 0:09:31.7]} 7.
Bf2 {[%clk 0:09:39.5]} 7... Bxc5 {[%clk 0:09:32.7]} 8. Bd3 {[%clk 0:09:37.4]}
8... Nh6 {[%clk 0:09:17.2]} 9. Nd2 {[%clk 0:07:59]} 9... O-O {[%clk 0:06:28.6]}
10. Ngf3 {[%clk 0:07:48]} 10... Nf5 {[%clk 0:06:09.6]} 11. Qe2 {[%clk 0:07:12]}
11... Bb6 {[%clk 0:03:32.6]} 12. O-O {[%clk 0:06:15.9]} 12... Bd7 {[%clk
0:02:46.5]} 13. a3 {[%clk 0:05:30.3]} 13... Nce7 {[%clk 0:02:09.9]} 14. Nc4
{[%clk 0:05:07.6]} 14... Nd5 {[%clk 0:01:53.8]} 15. Nxb6 {[%clk 0:03:05.8]}
15... Nxf4 {[%clk 0:00:29.8]} 16. Qd2 {[%clk 0:02:56.5]} 16... Nxd3 {[%clk
0:00:28]} 17. Nxa8 {[%clk 0:02:53.5]} 17... Nxf2 {[%clk 0:00:22.2]} 18. Qxf2
{[%clk 0:02:49.6]} 18... Qxa8 {[%clk 0:00:13.1]} 19. Nxd4 {[%clk 0:02:50.5]}
19... Nxd4 {[%clk 0:00:10.8]} 20. Qxd4 {[%clk 0:02:51.3]} 20... Bc6 {[%clk
0:00:12.4]} 21. Rad1 {[%clk 0:02:50.9]} 21... b6 {[%clk 0:00:11.6]} 22. Rd2
{[%clk 0:02:49.7]} 22... Qc8 {[%clk 0:00:09.7]} 23. c4 {[%clk 0:02:49.3]} 23...
h6 {[%clk 0:00:06.3]} 24. h3 {[%clk 0:02:49.8]} 24... Bb7 {[%clk 0:00:06.4]} 25.
b4 {[%clk 0:02:45.6]} 25... Qc7 {[%clk 0:00:03.6]} 26. Qd7 {[%clk 0:02:35.6]}
26... Qb8 {[%clk 0:00:04.3]} 27. Rdf2 {[%clk 0:02:25.5]} 1-0

[Event "GrandPrix_29.05"]
[Site "Chess.com"]
[Date "2020.05.29"]
[Round "4"]
[White "benko_008"]
[Black "Vesper2018"]
[Result "0-1"]
[WhiteElo "2047"]
[BlackElo "1853"]
[TimeControl "600+2"]
[EndTime "10:56:47 PDT"]
[Termination "Vesper2018 won by resignation"]

1. Nf3 {[%clk 0:09:59.5]} 1... Nf6 {[%clk 0:10:00.7]} 2. g3 {[%clk 0:09:59.8]}
2... g6 {[%clk 0:10:01.7]} 3. b3 {[%clk 0:10:00.2]} 3... Bg7 {[%clk 0:10:01.6]}
4. Bb2 {[%clk 0:10:00.5]} 4... c5 {[%clk 0:09:56]} 5. c4 {[%clk 0:10:00.4]} 5...
d6 {[%clk 0:09:52]} 6. Bg2 {[%clk 0:10:00.4]} 6... e5 {[%clk 0:09:52.3]} 7. O-O
{[%clk 0:10:00.6]} 7... Nc6 {[%clk 0:09:52.9]} 8. d3 {[%clk 0:09:59.8]} 8... O-O
{[%clk 0:09:53.6]} 9. Nc3 {[%clk 0:09:55.5]} 9... h6 {[%clk 0:09:46.3]} 10. Ne1
{[%clk 0:09:51.8]} 10... Be6 {[%clk 0:09:43.8]} 11. Nc2 {[%clk 0:09:48]} 11...
Qd7 {[%clk 0:09:40.9]} 12. Ne3 {[%clk 0:09:47]} 12... Bh3 {[%clk 0:09:38]} 13.
Qd2 {[%clk 0:09:38.4]} 13... Ne7 {[%clk 0:09:19.8]} 14. Ne4 {[%clk 0:09:18.4]}
14... Bxg2 {[%clk 0:08:52]} 15. Kxg2 {[%clk 0:09:17.3]} 15... Nh5 {[%clk
0:08:52.3]} 16. Nc3 {[%clk 0:08:44.8]} 16... f5 {[%clk 0:08:47.2]} 17. Ned5
{[%clk 0:08:33.3]} 17... Nc6 {[%clk 0:08:14.6]} 18. f4 {[%clk 0:07:46]} 18...
Rae8 {[%clk 0:08:05.6]} 19. Rae1 {[%clk 0:07:32.1]} 19... exf4 {[%clk
0:06:56.8]} 20. gxf4 {[%clk 0:07:23.5]} 20... g5 {[%clk 0:06:51.4]} 21. fxg5
{[%clk 0:07:11.6]} 21... f4 {[%clk 0:06:45]} 22. Ne4 {[%clk 0:05:42]} 22... hxg5
{[%clk 0:06:06]} 23. Bxg7 {[%clk 0:05:35.6]} 23... Kxg7 {[%clk 0:05:48.7]} 24.
Kh1 {[%clk 0:05:18.1]} 24... Rxe4 {[%clk 0:05:11.3]} 25. dxe4 {[%clk 0:05:14.8]}
25... Ng3+ {[%clk 0:05:09.3]} 26. Kg2 {[%clk 0:05:10.2]} 26... Rh8 {[%clk
0:04:08.6]} 27. Nxf4 {[%clk 0:03:27.7]} 27... gxf4 {[%clk 0:03:13.5]} 28. Rxf4
{[%clk 0:03:03.4]} 28... Qh3+ {[%clk 0:03:13.2]} 29. Kf2 {[%clk 0:02:49.5]}
29... Nxe4+ {[%clk 0:02:38]} 30. Rxe4 {[%clk 0:02:42.5]} 30... Qxh2+ {[%clk
0:02:38.9]} 31. Kf3 {[%clk 0:02:23.4]} 31... Ne5+ {[%clk 0:01:45.7]} 32. Rxe5
{[%clk 0:02:15.8]} 32... Rh3+ {[%clk 0:01:45.7]} 33. Kg4 {[%clk 0:01:57.7]}
33... Qg3+ {[%clk 0:01:41.5]} 34. Kf5 {[%clk 0:01:35.1]} 34... Qxe5+ {[%clk
0:01:41.8]} 35. Kg4 {[%clk 0:01:35.4]} 35... Qh5+ {[%clk 0:01:36]} 36. Kf4
{[%clk 0:01:33.6]} 36... Qh6+ {[%clk 0:01:36.9]} 0-1

[Event "GrandPrix_29.05"]
[Site "Chess.com"]
[Date "2020.05.29"]
[Round "4"]
[White "tacticthunder"]
[Black "MaxVavulin"]
[Result "1-0"]
[WhiteElo "2193"]
[BlackElo "2001"]
[TimeControl "600+2"]
[EndTime "10:56:59 PDT"]
[Termination "tacticthunder won by checkmate"]

1. e4 {[%clk 0:09:18.2]} 1... e5 {[%clk 0:10:00]} 2. Nf3 {[%clk 0:09:17.5]} 2...
Nc6 {[%clk 0:10:00.5]} 3. Bc4 {[%clk 0:09:15.4]} 3... Nf6 {[%clk 0:09:59.7]} 4.
d4 {[%clk 0:09:13.4]} 4... exd4 {[%clk 0:09:58.5]} 5. O-O {[%clk 0:09:13.6]}
5... Nxe4 {[%clk 0:09:56.5]} 6. Re1 {[%clk 0:09:14.4]} 6... d5 {[%clk 0:09:58]}
7. Bxd5 {[%clk 0:09:15.2]} 7... Qxd5 {[%clk 0:09:59.6]} 8. Nc3 {[%clk
0:09:16.6]} 8... Qa5 {[%clk 0:09:51.4]} 9. Nxe4 {[%clk 0:09:16.5]} 9... Be6
{[%clk 0:09:52.3]} 10. Bd2 {[%clk 0:09:16.8]} 10... Qd5 {[%clk 0:09:42.5]} 11.
Bg5 {[%clk 0:09:14.7]} 11... Be7 {[%clk 0:08:52.1]} 12. Bxe7 {[%clk 0:09:13.1]}
12... Kxe7 {[%clk 0:08:53.2]} 13. b3 {[%clk 0:08:48]} 13... h6 {[%clk
0:08:26.2]} 14. Qc1 {[%clk 0:08:40.9]} 14... Rad8 {[%clk 0:08:03.4]} 15. Qa3+
{[%clk 0:05:40.4]} 15... Kd7 {[%clk 0:08:03.5]} 16. c4 {[%clk 0:05:40.5]} 16...
Qf5 {[%clk 0:07:47.6]} 17. Nc5+ {[%clk 0:04:14.9]} 17... Kc8 {[%clk 0:07:46.6]}
18. Ne5 {[%clk 0:03:31.8]} 18... Rd6 {[%clk 0:06:11.3]} 19. Nxc6 {[%clk
0:02:45.1]} 19... Rxc6 {[%clk 0:06:11.8]} 20. Qxa7 {[%clk 0:02:07.9]} 20... Rxc5
{[%clk 0:05:03.2]} 21. Qa8+ {[%clk 0:02:07.3]} 21... Kd7 {[%clk 0:05:04.7]} 22.
Qxh8 {[%clk 0:02:09.2]} 22... Qf6 {[%clk 0:04:51.8]} 23. Qb8 {[%clk 0:02:02.5]}
23... Kc6 {[%clk 0:04:00.8]} 24. Rad1 {[%clk 0:00:32.7]} 24... Rg5 {[%clk
0:03:48.7]} 25. g3 {[%clk 0:00:30]} 25... Qf3 {[%clk 0:03:09.1]} 26. Qe8+ {[%clk
0:00:28.4]} 26... Kb6 {[%clk 0:03:07.1]} 27. Rxd4 {[%clk 0:00:22.5]} 27... Bh3
{[%clk 0:02:24.4]} 28. c5+ {[%clk 0:00:23]} 28... Rxc5 {[%clk 0:02:21.3]} 29.
Rb4+ {[%clk 0:00:22.5]} 29... Ka7 {[%clk 0:02:21]} 30. Qa4+ {[%clk 0:00:20.3]}
30... Kb8 {[%clk 0:02:21.3]} 31. Re8+ {[%clk 0:00:20.1]} 31... Bc8 {[%clk
0:02:22.7]} 32. Rxc8+ {[%clk 0:00:20.3]} 32... Kxc8 {[%clk 0:02:23.8]} 33. Qe8#
{[%clk 0:00:22.2]} 1-0

[Event "GrandPrix_29.05"]
[Site "Chess.com"]
[Date "2020.05.29"]
[Round "4"]
[White "Supernotar"]
[Black "Elshadchess"]
[Result "1-0"]
[WhiteElo "2131"]
[BlackElo "1732"]
[TimeControl "600+2"]
[EndTime "10:57:03 PDT"]
[Termination "Supernotar won on time"]

1. d4 {[%clk 0:09:56.6]} 1... d5 {[%clk 0:09:54]} 2. c4 {[%clk 0:09:54.1]} 2...
e5 {[%clk 0:09:54.9]} 3. dxe5 {[%clk 0:09:54.5]} 3... d4 {[%clk 0:09:56.5]} 4.
Nf3 {[%clk 0:09:55.4]} 4... Nc6 {[%clk 0:09:56.8]} 5. g3 {[%clk 0:09:53.7]} 5...
Be6 {[%clk 0:09:56.7]} 6. Nbd2 {[%clk 0:09:54.1]} 6... Qd7 {[%clk 0:09:57]} 7.
Bg2 {[%clk 0:09:54.6]} 7... Bh3 {[%clk 0:09:57.7]} 8. O-O {[%clk 0:09:55]} 8...
Bxg2 {[%clk 0:09:57.1]} 9. Kxg2 {[%clk 0:09:55.7]} 9... h5 {[%clk 0:09:58.1]}
10. h4 {[%clk 0:09:56.1]} 10... O-O-O {[%clk 0:09:57]} 11. a3 {[%clk 0:09:50.7]}
11... Nge7 {[%clk 0:09:57.5]} 12. b4 {[%clk 0:09:49.1]} 12... Ng6 {[%clk
0:09:58.5]} 13. Bb2 {[%clk 0:09:47.6]} 13... Qg4 {[%clk 0:09:58.4]} 14. Kh2
{[%clk 0:09:38.3]} 14... Be7 {[%clk 0:09:48.1]} 15. Qc2 {[%clk 0:09:28.3]} 15...
d3 {[%clk 0:08:36.4]} 16. exd3 {[%clk 0:09:12.9]} 16... Bxh4 {[%clk 0:08:36]}
17. Nxh4 {[%clk 0:07:56.3]} 17... Nxh4 {[%clk 0:08:35.3]} 18. f3 {[%clk
0:07:44.4]} 18... Nxf3+ {[%clk 0:06:55.8]} 19. Nxf3 {[%clk 0:07:26]} 19... h4
{[%clk 0:06:55.6]} 20. gxh4 {[%clk 0:06:57.1]} 20... Rxh4+ {[%clk 0:06:36.7]}
21. Nxh4 {[%clk 0:06:54.9]} 21... Rh8 {[%clk 0:06:34.8]} 22. Qg2 {[%clk
0:06:48]} 22... Rxh4+ {[%clk 0:06:18.6]} 23. Kg1 {[%clk 0:06:48.2]} 23... Qh5
{[%clk 0:06:16.2]} 24. Rf3 {[%clk 0:06:40.4]} 24... Nxe5 {[%clk 0:05:31]} 25.
Bxe5 {[%clk 0:06:32.4]} 25... Qxe5 {[%clk 0:05:32.9]} 26. Raf1 {[%clk
0:06:20.6]} 26... Qd4+ {[%clk 0:05:32.5]} 27. R1f2 {[%clk 0:06:18]} 27... g5
{[%clk 0:04:55.5]} 28. Rg3 {[%clk 0:05:23.3]} 28... Qa1+ {[%clk 0:04:07.8]} 29.
Qf1 {[%clk 0:05:17.1]} 29... Qe5 {[%clk 0:03:35.2]} 30. Kg2 {[%clk 0:05:02.8]}
30... Qh8 {[%clk 0:03:07.5]} 31. Rxf7 {[%clk 0:04:36.8]} 31... Rh2+ {[%clk
0:03:07.3]} 32. Kf3 {[%clk 0:04:37.1]} 32... g4+ {[%clk 0:02:09.2]} 33. Ke4
{[%clk 0:03:56.4]} 33... Qe8+ {[%clk 0:01:39]} 34. Kd4 {[%clk 0:03:47.6]} 34...
c5+ {[%clk 0:01:18.1]} 35. bxc5 {[%clk 0:03:13]} 35... Rh8 {[%clk 0:00:02.9]}
36. Qf4 {[%clk 0:02:58.4]} 1-0

[Event "GrandPrix_29.05"]
[Site "Chess.com"]
[Date "2020.05.29"]
[Round "4"]
[White "BairaKovanova"]
[Black "lelajavakhishvili"]
[Result "1-0"]
[WhiteElo "2212"]
[BlackElo "2081"]
[TimeControl "600+2"]
[EndTime "10:57:07 PDT"]
[Termination "BairaKovanova won by resignation"]

1. e4 {[%clk 0:10:01.9]} 1... d6 {[%clk 0:09:59.4]} 2. d4 {[%clk 0:10:01.6]}
2... Nf6 {[%clk 0:10:00.3]} 3. Nc3 {[%clk 0:10:02.4]} 3... g6 {[%clk 0:10:00.4]}
4. Be3 {[%clk 0:09:58]} 4... c6 {[%clk 0:09:59.6]} 5. Qd2 {[%clk 0:09:57.7]}
5... Nbd7 {[%clk 0:09:59.6]} 6. Nf3 {[%clk 0:09:57]} 6... b5 {[%clk 0:09:56.4]}
7. Bd3 {[%clk 0:09:57.1]} 7... Nb6 {[%clk 0:09:52.5]} 8. b3 {[%clk 0:09:32]}
8... Bg7 {[%clk 0:09:44]} 9. a4 {[%clk 0:08:42.5]} 9... b4 {[%clk 0:09:39.3]}
10. Ne2 {[%clk 0:08:42.4]} 10... a5 {[%clk 0:09:40.4]} 11. Bh6 {[%clk
0:08:01.4]} 11... O-O {[%clk 0:09:18]} 12. Bxg7 {[%clk 0:07:22.9]} 12... Kxg7
{[%clk 0:09:18]} 13. Ng3 {[%clk 0:07:23.5]} 13... c5 {[%clk 0:09:08.9]} 14. O-O
{[%clk 0:07:02.7]} 14... Bg4 {[%clk 0:09:03]} 15. dxc5 {[%clk 0:06:51.2]} 15...
dxc5 {[%clk 0:08:48.5]} 16. Qe3 {[%clk 0:06:25.7]} 16... Bxf3 {[%clk 0:08:43.1]}
17. Qxf3 {[%clk 0:06:25.5]} 17... e5 {[%clk 0:08:42.5]} 18. Bb5 {[%clk 0:06:21]}
18... Qe7 {[%clk 0:08:40.8]} 19. Qe3 {[%clk 0:06:18.8]} 19... Rad8 {[%clk
0:08:39.3]} 20. h3 {[%clk 0:06:04.9]} 20... h6 {[%clk 0:08:27.7]} 21. Ne2 {[%clk
0:05:23.7]} 21... Nh5 {[%clk 0:07:57.9]} 22. Rad1 {[%clk 0:05:18.1]} 22... Kh7
{[%clk 0:07:53]} 23. Rd3 {[%clk 0:04:17.9]} 23... Ng7 {[%clk 0:07:42.2]} 24. f4
{[%clk 0:03:39.3]} 24... exf4 {[%clk 0:06:52.8]} 25. Nxf4 {[%clk 0:03:35.3]}
25... Qe5 {[%clk 0:06:49.9]} 26. Rxd8 {[%clk 0:03:27.1]} 26... Rxd8 {[%clk
0:06:50]} 27. Nd3 {[%clk 0:03:28.2]} 27... Qe7 {[%clk 0:05:58.9]} 28. Qxc5
{[%clk 0:03:23.3]} 28... Qxc5+ {[%clk 0:04:45]} 29. Nxc5 {[%clk 0:03:22.5]}
29... Kg8 {[%clk 0:04:30.6]} 30. Nb7 {[%clk 0:03:08.6]} 30... Ra8 {[%clk
0:04:29.9]} 31. Nd6 {[%clk 0:03:06.7]} 31... Ra7 {[%clk 0:04:20.4]} 32. Nc4
{[%clk 0:03:05.7]} 32... Nc8 {[%clk 0:04:00.6]} 33. Rd1 {[%clk 0:02:17.2]} 33...
Ne6 {[%clk 0:04:00.6]} 34. Rd7 {[%clk 0:01:42.1]} 34... Ra8 {[%clk 0:03:17.1]}
35. Ne5 {[%clk 0:01:22.8]} 35... Nb6 {[%clk 0:02:46.7]} 36. Rb7 {[%clk
0:01:18.8]} 36... Nc8 {[%clk 0:02:37.2]} 37. Nxf7 {[%clk 0:01:12.7]} 37... Nc5
{[%clk 0:02:31.1]} 38. Nxh6+ {[%clk 0:01:01]} 38... Kh8 {[%clk 0:02:32.1]} 39.
Rc7 {[%clk 0:01:01.5]} 39... Nxe4 {[%clk 0:02:30]} 40. Bc6 {[%clk 0:00:59.8]}
40... Ra6 {[%clk 0:02:18.1]} 41. Bxe4 {[%clk 0:00:54.7]} 1-0